bitfinex/quotes_ETHUSD_20240612
["timestamp","ask_amount","ask_price","bid_price","bid_amount"]
[1718203986682,2.25244514,3632.2,3632.1,5.5065]
[1718203986886,2.58673841,3632.2,3632.1,5.5065]
[1718203987105,5.58673841,3632.2,3632.1,5.5065]
[1718203987596,4.43344514,3632.2,3632.1,5.5065]
[1718203987886,1.43344514,3632.2,3632.1,5.5065]
[1718203988262,3.0,3632.3,3632.1,13.24695]
[1718203988467,3.0,3632.4,3632.1,13.24695]
[1718203988661,1.43344514,3632.4,3632.1,13.24695]
[1718203989805,3.0,3632.5,3632.1,16.00015]
[1718203989986,1.43344514,3632.5,3632.2,0.05505737]
[1718203990285,1.43344514,3632.5,3632.3,7.19362074]
[1718203991387,1.43344514,3632.5,3632.3,9.94665074]
[1718203991590,3.0,3632.8,3632.3,9.94665074]
[1718203991763,1.43344514,3632.8,3632.5,2.75292]
[1718203992107,4.43344514,3632.8,3632.7,7.1201]
[1718203992286,1.43344514,3632.8,3632.7,12.6256]
[1718203993607,4.43344514,3632.8,3632.7,12.6256]
[1718203993806,4.43344514,3632.8,3632.7,5.5055]
[1718203994373,5.58673841,3632.8,3632.7,5.5055]
[1718203995709,8.33942841,3632.8,3632.7,5.5055]
[1718203995913,9.94969608,3632.8,3632.7,5.5055]
[1718203996086,10.42557772,3632.8,3632.7,5.5055]
[1718203996408,12.01091227,3632.8,3632.7,5.5055]
[1718203996911,9.10382629,3632.8,3632.7,5.5055]
[1718203997136,8.984025,3632.8,3632.7,5.5055]
[1718203997281,7.66205569,3632.8,3632.7,5.5055]
[1718203997480,7.18613514,3632.8,3632.7,5.5055]
[1718203999401,4.43344514,3632.8,3632.7,5.5055]
[1718203999782,1.43344514,3632.8,3632.7,5.5055]
[1718204001541,1.43344514,3632.8,3632.7,12.8957]
[1718204002896,3.0,3632.9,3632.8,2.75269]
[1718204003137,1.15341121,3633.0,3632.8,8.25809]
[1718204003302,1.43344514,3633.0,3632.8,8.25809]
[1718204004400,1.43344514,3633.0,3632.8,5.5054]
[1718204004401,2.58685635,3633.0,3632.8,5.5054]
[1718204004604,3.0,3632.9,3632.8,5.5054]
[1718204004797,4.15341121,3632.9,3632.8,5.5054]
[1718204006106,5.58685635,3632.9,3632.8,5.5054]
[1718204006309,4.43344514,3632.9,3632.8,5.5054]
[1718204007210,5.87523202,3632.9,3632.8,5.5054]
[1718204007542,4.43344514,3632.9,3632.8,5.5054]
[1718204008019,7.18606514,3632.9,3632.8,5.5054]
[1718204008852,5.58731131,3632.9,3632.8,5.5054]
[1718204010054,4.43344514,3632.9,3632.8,5.5054]
[1718204011450,5.58731131,3632.9,3632.8,5.5054]
[1718204011843,4.43344514,3632.9,3632.8,5.5054]
[1718204014267,3.0,3632.9,3632.8,7.889861]
[1718204014432,3.0,3633.1,3632.9,2.7526]
[1718204014761,1.43344514,3633.1,3633.0,5.5051]
[1718204017346,3.0,3633.3,3633.0,5.5051]
[1718204017547,4.43344514,3633.3,3633.0,5.5051]
[1718204017739,4.43344514,3633.3,3633.1,2.75247]
[1718204018063,4.43344514,3633.3,3633.2,5.5048]
[1718204026562,6.90900303,3633.3,3633.2,5.5048]
[1718204028462,5.58731131,3633.3,3633.2,5.5048]
[1718204028665,6.90825512,3633.3,3633.2,5.5048]
[1718204031287,5.75512474,3633.3,3633.2,5.5048]
[1718204032196,12.75312474,3633.3,3633.2,5.5048]
[1718204032361,13.34888939,3633.3,3633.2,5.5048]
[1718204032560,11.90724979,3633.3,3633.2,5.5048]
[1718204032782,21.83259779,3633.3,3633.2,5.5048]
[1718204033095,23.20159779,3633.3,3633.2,5.5048]
[1718204033293,24.93156531,3633.3,3633.2,5.5048]
[1718204033591,23.20159779,3633.3,3633.2,5.5048]
[1718204039494,21.30288379,3633.3,3633.2,5.5048]
[1718204042600,13.27624979,3633.3,3633.2,5.5048]
[1718204042799,5.45924979,3633.3,3633.2,5.5048]
[1718204043012,3.6409303,3633.3,3633.2,5.5048]
[1718204043234,4.43344514,3633.3,3633.2,5.5048]
[1718204043510,4.90924979,3633.3,3633.2,5.5048]
[1718204043995,4.43344514,3633.3,3633.2,5.5048]
[1718204044305,5.75511786,3633.3,3633.2,5.5048]
[1718204044710,5.87649558,3633.3,3633.2,5.5048]
[1718204044876,4.43344514,3633.3,3633.2,5.5048]
[1718204045390,5.87649537,3633.3,3633.2,5.5048]
[1718204045905,4.43344514,3633.3,3633.2,5.5048]
[1718204046824,5.87649537,3633.3,3633.2,5.5048]
[1718204047025,7.19816809,3633.3,3633.2,5.5048]
[1718204047630,5.75511786,3633.3,3633.2,5.5048]
[1718204047927,4.43344514,3633.3,3633.2,5.5048]
[1718204048527,1.43344514,3633.3,3633.2,5.5048]
[1718204048731,4.43344514,3633.3,3633.2,5.5048]
[1718204048936,2.75516158,3633.3,3633.2,5.5048]
[1718204049143,5.75516158,3633.3,3633.2,5.5048]
[1718204049340,4.43344514,3633.3,3633.2,5.5048]
[1718204049541,1.43344514,3633.3,3633.2,5.5048]
[1718204049712,4.43344514,3633.3,3633.2,5.5048]
[1718204049926,1.43344514,3633.3,3633.2,5.5048]
[1718204052709,1.43344514,3632.2,3631.5,0.57204108]
[1718204052936,1.43344514,3632.2,3630.8,0.46872726]
[1718204052937,1.15493637,3631.7,3631.1,0.819]
[1718204053102,2.58838151,3631.6,3631.1,0.819]
[1718204053304,3.0,3631.5,3631.1,0.819]
[1718204053525,4.43344514,3631.5,3631.1,0.819]
[1718204054536,1.43344514,3631.5,3631.2,5.5077]
[1718204057000,3.0,3631.7,3631.4,0.819]
[1718204057229,4.43344514,3631.7,3631.5,5.5074]
[1718204057713,3.0,3631.7,3631.5,5.5074]
[1718204057920,4.15493637,3632.1,3631.5,5.5074]
[1718204058147,1.43344514,3632.0,3631.6,0.05506599]
[1718204058350,4.43344514,3632.0,3631.7,5.5071]
[1718204058720,1.43344514,3632.0,3631.7,5.5071]
[1718204060327,3.0,3632.1,3631.8,0.05506562]
[1718204060636,3.0,3632.4,3631.9,5.5068]
[1718204060833,1.43344514,3632.3,3631.9,5.5068]
[1718204061356,1.43344514,3632.3,3632.0,0.05506147]
[1718204061534,3.0,3632.4,3632.0,0.87406147]
[1718204061737,1.43344514,3632.4,3632.1,5.5065]
[1718204062461,1.15493637,3632.7,3632.2,0.819]
[1718204062647,1.43344514,3632.7,3632.3,5.56125626]
[1718204062956,1.43344514,3632.7,3632.3,7.18066689]
[1718204063838,1.15493637,3632.9,3632.4,0.819]
[1718204064039,5.51404051,3633.1,3632.6,0.819]
[1718204064040,1.15493637,3633.1,3632.6,0.819]
[1718204064243,1.43344514,3633.0,3632.7,5.5055]
[1718204067062,5.58838151,3633.0,3632.7,5.5055]
[1718204069566,4.15493637,3633.0,3632.7,5.5055]
[1718204069884,1.15493637,3633.0,3632.7,5.5055]
[1718204070887,1.43344514,3632.9,3632.7,5.5055]
[1718204071072,2.75269,3632.8,3632.7,5.5055]
[1718204071277,7.73613514,3632.8,3632.7,5.5055]
[1718204073186,16.94012314,3632.8,3632.7,5.5055]
[1718204073359,17.41604529,3632.8,3632.7,5.5055]
[1718204073558,18.73786491,3632.8,3632.7,5.5055]
[1718204074962,17.41607249,3632.8,3632.7,5.5055]
[1718204076602,16.94012314,3632.8,3632.7,5.5055]
[1718204076755,17.41606357,3632.8,3632.7,5.5055]
[1718204076954,15.99566757,3632.8,3632.7,5.5055]
[1718204077392,10.83304757,3632.8,3632.7,5.5055]
[1718204077594,8.21207557,3632.8,3632.7,5.5055]
[1718204077754,9.03107557,3632.8,3632.7,5.5055]
[1718204077955,10.35306429,3632.8,3632.7,5.5055]
[1718204078258,11.51269257,3632.8,3632.7,5.5055]
[1718204078458,9.03107557,3632.8,3632.7,5.5055]
[1718204079172,8.21207557,3632.8,3632.7,5.5055]
[1718204079493,7.73613514,3632.8,3632.7,5.5055]
[1718204079874,8.88829586,3632.8,3632.7,5.5055]
[1718204080080,4.15216072,3632.8,3632.7,5.5055]
[1718204080285,1.15216072,3632.8,3632.7,5.5055]
[1718204080484,4.15216072,3632.9,3632.7,5.5055]
[1718204080686,5.58560586,3632.9,3632.7,5.5055]
[1718204081497,21.7010535,3632.8,3632.7,5.5055]
[1718204081672,22.05332899,3632.8,3632.7,5.5055]
[1718204081865,30.43532874,3632.8,3632.7,5.5055]
[1718204082376,26.34765274,3632.8,3632.7,5.5055]
[1718204083260,28.07590418,3632.8,3632.7,5.5055]
[1718204083463,26.34765274,3632.8,3632.7,5.5055]
[1718204085089,25.52865274,3632.8,3632.7,5.5055]
[1718204085292,27.25690418,3632.8,3632.7,5.5055]
[1718204085492,18.88693661,3632.8,3632.7,5.5055]
[1718204085794,34.9529499,3632.8,3632.7,5.5055]
[1718204086493,28.5361149,3632.8,3632.7,5.5055]
[1718204086698,28.09144991,3632.8,3632.7,5.5055]
[1718204087476,25.01762662,3632.8,3632.7,5.5055]
[1718204087685,23.97300662,3632.8,3632.7,5.5055]
[1718204090178,23.94178536,3632.8,3632.7,5.5055]
[1718204090388,24.41778471,3632.8,3632.7,5.5055]
[1718204091611,27.17047471,3632.8,3632.7,5.5055]
[1718204091826,23.65603306,3632.8,3632.7,5.5055]
[1718204092105,47.75256871,3632.8,3632.7,5.5055]
[1718204092269,43.35119871,3632.8,3632.7,5.5055]
[1718204092475,44.43185841,3632.8,3632.7,5.5055]
[1718204092874,42.41491571,3632.8,3632.7,5.5055]
[1718204093302,44.43185841,3632.8,3632.7,5.5055]
[1718204093906,42.41491571,3632.8,3632.7,5.5055]
[1718204094404,44.43214489,3632.8,3632.7,5.5055]
[1718204094767,45.16760571,3632.8,3632.7,5.5055]
[1718204095940,18.88704971,3632.8,3632.7,4.91238]
[1718204096239,51.11781771,3632.8,3632.7,4.91238]
[1718204096531,50.30879571,3632.8,3632.7,4.91238]
[1718204097095,49.52334471,3632.8,3632.7,4.91238]
[1718204097332,49.52334471,3632.8,3632.7,4.86388]
[1718204097693,49.52334471,3632.8,3632.7,3.66538]
[1718204098314,2.75349,3631.8,3631.2,7.3699]
[1718204098514,6.1364978,3631.7,3631.3,0.73699]
[1718204100504,6.1364978,3631.7,3631.2,7.3699]
[1718204100828,2.75364,3631.6,3631.2,7.3699]
[1718204101031,3.0,3631.5,3631.2,7.3699]
[1718204101907,3.0,3631.5,3631.4,7.2617]
[1718204102100,4.15305266,3631.7,3631.4,7.2617]
[1718204102296,4.15305266,3631.7,3631.6,7.2617]
[1718204102297,3.0,3631.7,3631.6,7.2617]
[1718204102496,3.0,3631.8,3631.6,7.2617]
[1718204102700,1.15305266,3631.9,3631.6,7.2617]
[1718204102901,1.15305266,3631.8,3631.6,7.2617]
[1718204103613,4.15305266,3631.8,3631.6,7.2617]
[1718204104514,1.15305266,3631.8,3631.6,7.2617]
[1718204104841,3.0,3631.7,3631.6,7.2617]
[1718204105036,1.62904249,3631.8,3631.6,7.2617]
[1718204105237,4.15305266,3631.8,3631.6,7.2617]
[1718204106008,1.15305266,3631.8,3631.6,7.2617]
[1718204106230,3.0,3631.7,3631.6,7.2617]
[1718204106542,3.0,3631.9,3631.6,7.74800693]
[1718204106740,1.15305266,3632.0,3631.8,7.8589]
[1718204106913,1.15305266,3632.3,3632.0,2.7533]
[1718204107115,1.32228492,3632.4,3632.2,7.0399]
[1718204107116,1.15305266,3632.4,3632.2,7.0399]
[1718204107323,1.15305266,3632.5,3632.2,7.0399]
[1718204107632,2.5864978,3632.5,3632.2,7.0399]
[1718204108232,1.43344514,3632.5,3632.2,7.0399]
[1718204109035,3.0,3632.5,3632.2,7.0399]
[1718204109237,5.47533758,3632.6,3632.2,8.20779261]
[1718204109648,4.15305266,3632.6,3632.2,10.96090261]
[1718204109813,1.15305266,3632.6,3632.3,0.819]
[1718204110149,2.47533758,3632.6,3632.4,2.753]
[1718204110454,4.15305266,3632.6,3632.5,9.34357926]
[1718204110666,3.0,3632.6,3632.5,9.34357926]
[1718204110822,1.15305266,3633.0,3632.5,9.34357926]
[1718204111142,3.0,3633.0,3632.5,14.84937926]
[1718204111652,4.15305266,3633.0,3632.5,14.84937926]
[1718204111830,1.15305266,3633.0,3632.6,1.76023793]
[1718204113372,2.4748316,3633.3,3632.8,0.819]
[1718204113568,1.43344514,3633.3,3633.0,0.819]
[1718204113731,1.43344514,3633.3,3633.1,5.5049]
[1718204114321,2.5864978,3633.3,3633.1,5.5049]
[1718204114831,4.15305266,3633.2,3633.1,5.5049]
[1718204118021,5.5864978,3633.2,3633.1,5.5049]
[1718204118659,4.43344514,3633.2,3633.1,5.5049]
[1718204118954,5.5864978,3633.2,3633.1,5.5049]
[1718204120070,8.8888878,3633.2,3633.1,5.5049]
[1718204121863,9.17715097,3633.2,3633.1,5.5049]
[1718204122940,7.73583514,3633.2,3633.1,5.5049]
[1718204123428,8.88730729,3633.2,3633.1,5.5049]
[1718204123663,7.73583514,3633.2,3633.1,5.5049]
[1718204123852,8.88728747,3633.2,3633.1,5.5049]
[1718204126330,9.65103688,3633.2,3633.1,5.5049]
[1718204126957,24.87891808,3633.2,3633.1,5.5049]
[1718204127156,23.83431808,3633.2,3633.1,5.5049]
[1718204127554,19.84060378,3633.2,3633.1,5.5049]
[1718204127757,17.48836678,3633.2,3633.1,5.5049]
[1718204127959,7.73583514,3633.2,3633.1,5.5049]
[1718204128885,8.21170039,3633.2,3633.1,5.5049]
[1718204129243,9.53355323,3633.2,3633.1,5.5049]
[1718204129646,16.35829523,3633.2,3633.1,5.5049]
[1718204129848,17.79749493,3633.2,3633.1,5.5049]
[1718204130050,10.97275293,3633.2,3633.1,5.5049]
[1718204130363,9.53355323,3633.2,3633.1,5.5049]
[1718204130938,9.5335932,3633.2,3633.1,5.5049]
[1718204133404,8.21171227,3633.2,3633.1,5.5049]
[1718204134302,9.36279047,3633.2,3633.1,5.5049]
[1718204134604,8.21170485,3633.2,3633.1,5.5049]
[1718204137903,9.65090455,3633.2,3633.1,5.5049]
[1718204138200,19.24372055,3633.2,3633.1,5.5049]
[1718204138604,17.41652885,3633.2,3633.1,5.5049]
[1718204139169,15.82711085,3633.2,3633.1,5.5049]
[1718204139466,15.18544185,3633.2,3633.1,5.5049]
[1718204139700,16.62461303,3633.2,3633.1,5.5049]
[1718204140016,15.62410628,3633.2,3633.1,5.5049]
[1718204140727,17.3511117,3633.2,3633.1,5.5049]
[1718204141197,27.1075017,3633.2,3633.1,5.5049]
[1718204141395,25.79530215,3633.2,3633.1,5.5049]
[1718204141778,25.79537152,3633.2,3633.1,5.5049]
[1718204143014,25.79539702,3633.2,3633.1,5.5049]
[1718204143791,18.82166002,3633.2,3633.1,5.5049]
[1718204144212,43.06762102,3633.2,3633.1,5.5049]
[1718204144576,45.08366677,3633.2,3633.1,5.5049]
[1718204145411,50.83605677,3633.2,3633.1,5.5049]
[1718204145608,50.83604934,3633.2,3633.1,5.5049]
[1718204146915,46.59159534,3633.2,3633.1,5.5049]
[1718204147090,37.12312934,3633.2,3633.1,5.5049]
[1718204147290,32.04576359,3633.2,3633.1,5.5049]
[1718204148181,28.22676359,3633.2,3633.1,5.5049]
[1718204148425,19.74943859,3633.2,3633.1,5.5049]
[1718204148874,20.22114519,3633.2,3633.1,5.5049]
[1718204149078,20.62533932,3633.2,3633.1,5.5049]
[1718204149310,16.49521432,3633.2,3633.1,5.5049]
[1718204149506,15.67621432,3633.2,3633.1,5.5049]
[1718204149827,8.21179229,3633.2,3633.1,5.5049]
[1718204149978,5.21179229,3633.2,3633.1,5.5049]
[1718204150488,4.73583514,3633.2,3633.1,5.5049]
[1718204151080,7.73583514,3633.2,3633.1,5.5049]
[1718204151306,8.21179229,3633.2,3633.1,5.5049]
[1718204151502,9.94116332,3633.2,3633.1,5.5049]
[1718204151708,8.21179229,3633.2,3633.1,5.5049]
[1718204152016,8.21179229,3633.2,3633.1,12.7786]
[1718204152416,7.73583514,3633.2,3633.1,12.7786]
[1718204152719,8.21179229,3633.2,3633.1,12.7786]
[1718204154521,9.94116332,3633.2,3633.1,12.7786]
[1718204155519,2.45940229,3633.2,3633.1,12.7786]
[1718204155922,1.98344514,3633.2,3633.1,12.7786]
[1718204156119,3.30523126,3633.2,3633.1,12.7786]
[1718204156921,4.98344514,3633.2,3633.1,12.7786]
[1718204157500,1.98344514,3633.2,3633.1,5.5049]
[1718204157705,4.98344514,3633.2,3633.1,5.5049]
[1718204161499,1.98344514,3633.2,3633.1,5.5049]
[1718204162196,3.0,3633.3,3633.2,6.605]
[1718204162403,1.98344514,3633.3,3633.2,6.605]
[1718204162719,6.42596479,3633.3,3633.2,12.1098]
[1718204162922,4.98344514,3633.3,3633.2,12.1098]
[1718204163123,6.30524507,3633.3,3633.2,12.1098]
[1718204164344,4.98344514,3633.3,3633.2,12.1098]
[1718204164650,6.30522154,3633.3,3633.2,12.1098]
[1718204166493,4.98344514,3633.3,3633.2,12.1098]
[1718204166811,6.30522154,3633.3,3633.2,12.1098]
[1718204167215,6.42585737,3633.3,3633.2,12.1098]
[1718204167543,4.98344514,3633.3,3633.2,12.1098]
[1718204168153,6.30522154,3633.3,3633.2,5.5048]
[1718204168451,4.98344514,3633.3,3633.2,5.5048]
[1718204168749,8.57899114,3633.3,3633.2,5.5048]
[1718204169054,9.87384547,3633.3,3633.2,5.5048]
[1718204171175,9.87388973,3633.3,3633.2,5.5048]
[1718204172975,16.75688973,3633.3,3633.2,5.5048]
[1718204173151,18.77634201,3633.3,3633.2,5.5048]
[1718204173356,15.96162761,3633.3,3633.2,5.5048]
[1718204174463,16.35009798,3633.3,3633.2,5.5048]
[1718204174688,2.75338,3631.9,3631.7,6.6001]
[1718204174978,1.15419402,3631.8,3631.7,6.6001]
[1718204175343,1.15397182,3631.8,3631.7,6.6001]
[1718204176753,1.15397182,3631.8,3631.7,7.34201]
[1718204176955,1.15397182,3631.9,3631.7,8.16101]
[1718204177168,4.15397182,3632.0,3631.8,5.5069]
[1718204177372,3.0,3632.2,3631.9,7.4304]
[1718204177585,1.15397182,3632.3,3632.1,0.819]
[1718204177793,2.58741696,3632.3,3632.1,0.819]
[1718204178090,3.0,3632.2,3632.1,0.819]
[1718204178453,3.0,3632.2,3632.0,1.367921]
[1718204178653,4.15397182,3632.2,3632.1,5.5065]
[1718204178854,3.0,3632.2,3632.1,5.5065]
[1718204179586,4.44274253,3632.2,3632.1,5.5065]
[1718204180088,5.87618767,3632.2,3632.1,5.5065]
[1718204180302,6.35214378,3632.2,3632.1,5.5065]
[1718204180489,7.67433091,3632.2,3632.1,5.5065]
[1718204180794,6.35214378,3632.2,3632.1,5.5065]
[1718204181453,6.90214378,3632.2,3632.1,5.5065]
[1718204182167,6.42618767,3632.2,3632.1,5.5065]
[1718204183267,6.90219805,3632.2,3632.1,5.5065]
[1718204183471,6.42618767,3632.2,3632.1,5.5065]
[1718204184404,4.98344514,3632.2,3632.1,5.5065]
[1718204184865,6.13632057,3632.2,3632.1,5.5065]
[1718204188915,4.98344514,3632.2,3632.1,5.5065]
[1718204190362,6.13614011,3632.2,3632.1,5.5065]
[1718204190863,4.98344514,3632.2,3632.1,5.5065]
[1718204191798,6.90039173,3632.2,3632.1,5.5065]
[1718204191981,8.22260239,3632.2,3632.1,5.5065]
[1718204193504,8.2223425,3632.2,3632.1,5.5065]
[1718204193800,6.78174149,3632.2,3632.1,5.5065]
[1718204194107,5.45946476,3632.2,3632.1,5.5065]
[1718204194308,6.78174149,3632.2,3632.1,5.5065]
[1718204195770,8.2223425,3632.2,3632.1,5.5065]
[1718204195971,6.78174149,3632.2,3632.1,5.5065]
[1718204196583,5.45946476,3632.2,3632.1,5.5065]
[1718204196783,6.90006577,3632.2,3632.1,5.5065]
[1718204198899,16.52693177,3632.2,3632.1,5.5065]
[1718204199930,13.42693277,3632.2,3632.1,5.5065]
[1718204202200,14.24593277,3632.2,3632.1,5.5065]
[1718204202510,6.27846476,3632.2,3632.1,5.5065]
[1718204202715,26.77404476,3632.2,3632.1,5.5065]
[1718204203297,26.19988576,3632.2,3632.1,5.5065]
[1718204204060,25.32497176,3632.2,3632.1,5.5065]
[1718204204234,25.03883976,3632.2,3632.1,5.5065]
[1718204204603,25.51487684,3632.2,3632.1,5.5065]
[1718204204807,25.03885722,3632.2,3632.1,5.5065]
[1718204205435,35.09555722,3632.2,3632.1,5.5065]
[1718204205646,16.72365259,3632.2,3632.1,5.5065]
[1718204206005,49.66731259,3632.2,3632.1,5.5065]
[1718204206360,17.11718221,3632.2,3632.1,5.5065]
[1718204206710,43.58333721,3632.2,3632.1,5.5065]
[1718204207717,43.58338916,3632.2,3632.1,5.5065]
[1718204210368,43.10730013,3632.2,3632.1,5.5065]
[1718204210661,45.59986053,3632.2,3632.1,5.5065]
[1718204210869,43.58341866,3632.2,3632.1,5.5065]
[1718204211609,45.59985354,3632.2,3632.1,5.5065]
[1718204212558,43.58341167,3632.2,3632.1,5.5065]
[1718204212861,43.58344669,3632.2,3632.1,5.5065]
[1718204214263,3.0,3631.8,3630.8,7.75132726]
[1718204214469,2.75413,3630.9,3630.8,7.75132726]
[1718204214665,7.18757514,3630.9,3630.8,7.75132726]
[1718204222182,3.0,3630.9,3630.8,8.60835999]
[1718204222386,3.0,3631.0,3630.8,8.60835999]
[1718204222585,1.43344514,3631.0,3630.8,8.60835999]
[1718204222789,3.0,3631.0,3630.8,11.36255999]
[1718204222997,3.0,3631.0,3630.9,7.982456]
[1718204223156,3.0,3631.3,3630.9,7.982456]
[1718204223356,1.43344514,3631.2,3630.9,7.982456]
[1718204223767,1.43344514,3631.2,3631.0,7.9518]
[1718204225156,1.15298607,3631.5,3631.2,2.75388]
[1718204225358,2.75352,3631.8,3631.5,7.1521]
[1718204225359,1.15298607,3631.8,3631.5,7.1521]
[1718204225691,1.15298607,3631.9,3631.7,7.1521]
[1718204225875,1.79847791,3632.0,3631.7,7.1521]
[1718204225876,0.47606307,3632.0,3631.8,5.5069]
[1718204226255,2.47540091,3632.3,3631.8,5.5069]
[1718204226456,1.43344514,3632.2,3631.9,1.67821464]
[1718204226695,1.43344514,3632.2,3631.9,1.623153]
[1718204228181,4.43344514,3632.2,3631.9,1.623153]
[1718204228859,4.43344514,3632.2,3632.0,5.5066]
[1718204230364,5.58643121,3632.2,3632.0,5.5066]
[1718204230695,3.0,3632.2,3632.0,5.5066]
[1718204230899,1.15298607,3632.3,3632.0,5.5066]
[1718204230900,1.43344514,3632.1,3632.0,5.5066]
[1718204231998,2.58643121,3632.1,3632.0,5.5066]
[1718204232197,5.58643121,3632.1,3632.0,5.5066]
[1718204232377,4.43344514,3632.1,3632.0,5.5066]
[1718204232874,5.58622387,3632.1,3632.0,5.5066]
[1718204233493,4.43344514,3632.1,3632.0,5.5066]
[1718204234291,1.43344514,3632.1,3632.0,5.5066]
[1718204235282,1.43344514,3632.1,3632.0,7.0070888]
[1718204240205,1.43344514,3632.1,3632.0,5.5066]
[1718204246720,4.15277873,3632.3,3632.1,2.75322]
[1718204246895,1.43344514,3632.2,3632.1,2.75322]
[1718204247214,4.43344514,3632.2,3632.1,2.75322]
[1718204247715,1.43344514,3632.2,3632.1,2.75322]
[1718204248913,2.58622387,3632.2,3632.1,2.75322]
[1718204249081,5.58622387,3632.2,3632.1,2.75322]
[1718204249519,6.90836749,3632.2,3632.1,2.75322]
[1718204250321,5.75558876,3632.2,3632.1,2.75322]
[1718204250619,4.43344514,3632.2,3632.1,2.75322]
[1718204251908,3.0,3632.2,3632.1,3.57222]
[1718204252105,1.15277873,3632.3,3632.1,9.986602]
[1718204252448,1.15277873,3632.3,3632.2,7.208]
[1718204252721,1.15277873,3632.3,3632.2,12.7143]
[1718204254097,3.0,3632.4,3632.3,2.75307]
[1718204254297,4.43344514,3632.7,3632.3,9.07827]
[1718204254493,0.55,3632.6,3632.3,9.07827]
[1718204254698,1.98344514,3632.6,3632.3,9.07827]
[1718204261036,3.0,3632.7,3632.6,2.75284]
[1718204261795,7.43,3632.8,3632.6,15.22104]
[1718204262128,7.43,3632.8,3632.7,0.819]
[1718204262329,7.43,3632.8,3632.7,6.3245]
[1718204262527,7.43,3632.8,3632.7,7.928484]
[1718204263129,10.43,3632.8,3632.7,7.928484]
[1718204265936,3.0,3632.8,3632.7,7.928484]
[1718204266099,1.1519714,3633.2,3632.7,7.928484]
[1718204266427,1.43344514,3633.1,3632.7,7.928484]
[1718204266629,4.43344514,3633.1,3632.7,7.928484]
[1718204267136,4.43344514,3633.1,3633.0,2.75248]
[1718204267345,4.43344514,3633.1,3633.0,8.25758]
[1718204268750,3.0,3633.1,3633.0,9.07658]
[1718204269050,1.1519714,3633.2,3633.0,9.07658]
[1718204269715,3.0,3633.3,3633.0,9.07658]
[1718204270043,1.43344514,3633.3,3633.0,9.07658]
[1718204270212,4.43344514,3633.3,3633.0,9.07658]
[1718204270615,3.0,3633.2,3633.0,9.07658]
[1718204270815,1.43344514,3633.3,3633.0,10.13314784]
[1718204271314,1.1519714,3633.5,3633.3,2.75231]
[1718204271527,1.1519714,3633.6,3633.5,2.75216]
[1718204271848,1.1519714,3633.9,3633.8,2.75194]
[1718204272241,1.1519714,3634.0,3633.8,2.75194]
[1718204272438,2.58541654,3634.0,3633.8,2.75194]
[1718204273320,3.0,3633.9,3633.8,2.75194]
[1718204273520,4.43344514,3634.0,3633.8,2.75194]
[1718204274636,3.0,3634.0,3633.8,2.75194]
[1718204274841,1.1519714,3634.2,3633.9,5.5037]
[1718204274842,4.1519714,3634.2,3633.9,5.5037]
[1718204275020,1.98344514,3634.1,3633.9,5.5037]
[1718204275423,4.98344514,3634.1,3633.9,5.5037]
[1718204275627,3.0,3634.0,3633.9,5.5037]
[1718204275948,1.98344514,3634.1,3633.9,5.5037]
[1718204276121,4.98344514,3634.1,3633.9,5.5037]
[1718204276334,0.02895436,3634.0,3633.9,5.5037]
[1718204276633,8.2944125,3634.0,3633.9,5.5037]
[1718204276816,12.96742954,3634.0,3633.9,5.5037]
[1718204277020,8.52406354,3634.0,3633.9,5.5037]
[1718204277459,7.37209214,3634.0,3633.9,5.5037]
[1718204278949,3.0,3634.0,3633.9,5.5037]
[1718204279118,1.1519714,3634.1,3633.9,5.5037]
[1718204279320,2.58541654,3634.1,3633.9,5.5037]
[1718204279624,3.0,3634.0,3633.9,5.5037]
[1718204280327,4.43344514,3634.0,3633.9,5.5037]
[1718204280527,1.98344514,3634.0,3633.9,5.5037]
[1718204280758,4.98344514,3634.0,3633.9,5.5037]
[1718204280958,1.98344514,3634.0,3633.9,5.5037]
[1718204282156,2.80244514,3634.0,3633.9,5.5037]
[1718204282677,21.58248514,3634.0,3633.9,5.5037]
[1718204282825,20.93248514,3634.0,3633.9,5.5037]
[1718204283474,3.0,3634.0,3633.9,6.87307]
[1718204283677,1.1519714,3634.3,3633.9,9.62489]
[1718204283678,3.0,3634.3,3633.9,9.62489]
[1718204283822,1.43344514,3634.3,3633.9,8.80589]
[1718204284026,4.43344514,3634.3,3633.9,9.62489]
[1718204284376,4.43344514,3634.3,3634.0,0.05503023]
[1718204284524,1.43344514,3634.3,3634.1,5.5034]
[1718204287657,3.0,3634.7,3634.2,0.05503022]
[1718204287823,1.43344514,3634.6,3634.3,5.55812477]
[1718204288025,1.43344514,3634.6,3634.3,6.90541725]
[1718204288720,1.43344514,3634.6,3634.3,7.72441725]
[1718204289228,3.0,3634.9,3634.6,2.7513]
[1718204289443,1.43344514,3634.9,3634.7,5.5025]
[1718204289648,4.43344514,3634.9,3634.7,5.5025]
[1718204290155,3.0,3634.8,3634.7,5.5025]
[1718204290360,1.43344514,3634.9,3634.7,5.5025]
[1718204291350,3.0,3635.1,3634.7,5.5025]
[1718204291351,3.0,3635.1,3634.7,14.01638]
[1718204291677,2.75,3635.4,3635.0,2.75099]
[1718204291847,2.75,3635.4,3635.2,2.75088]
[1718204292050,2.75,3635.4,3635.3,8.1949]
[1718204292225,1.1519714,3635.8,3635.4,2.75069]
[1718204292433,1.1519714,3636.1,3635.6,0.819]
[1718204292657,1.43344514,3636.0,3635.6,0.819]
[1718204292833,1.43344514,3636.0,3635.7,5.501]
[1718204293274,0.02895436,3635.9,3635.7,5.501]
[1718204293443,8.68394514,3635.8,3635.7,5.501]
[1718204293951,11.41254814,3635.8,3635.7,5.501]
[1718204294371,12.23154814,3635.8,3635.7,5.501]
[1718204294553,11.96254814,3635.8,3635.7,5.501]
[1718204294755,14.96254814,3635.8,3635.7,5.501]
[1718204295466,12.23394514,3635.8,3635.7,5.501]
[1718204295865,14.87194514,3635.8,3635.7,5.501]
[1718204296537,7.62144514,3635.8,3635.7,5.501]
[1718204296739,3.0,3635.8,3635.7,5.501]